{"text_format":"1","workbook":"xlsx","n_sheets":9,"sheets":["Titel","stappenplan inspectie scholen ","Capaciteitsbepaling - Ramen","Capaciteitsbepaling - Roosters","CO2-meting","Ruwe data CO2-metingen","Debiet-metingen - Rooster","Disclaimer","Lijsten"],"not_rendered":{"charts":0,"images":4,"macros":1,"external_links":11,"defined_names":149,"comments":0,"pivot_tables":0},"unopened":[],"bounds":{"document_bytes":16777216,"sheet_cells":100000,"rows_first":2000,"rows_last":500,"rows_between":2000,"halvings":0,"cell_chars":16384,"cell_head_chars":4096},"cells_cut":0,"cells_raw":0,"read":"whole","date_system":"1900"}

{"sheet":"Titel","index":0,"n_rows":17,"n_cols":3,"rows_kept":17,"cut":false,"hidden":false,"merged":[]}
[]
[]
[]
[]
[]
[]
[]
[]
[]
[]
[]
[]
[null,"Quickscan Ventilatie in Scholen"]
[null,"Opname & Analysetool"]
[]
[null,"Datum:","25 November 2020"]
[null,"Versie:",1]

{"sheet":"stappenplan inspectie scholen ","index":1,"n_rows":170,"n_cols":9,"rows_kept":170,"cut":false,"hidden":false,"merged":[[33,14,35,14],[107,2,107,7],[32,2,32,7],[33,2,33,7],[38,2,38,7],[63,2,63,7]]}
[]
[]
[]
[]
[]
[]
[]
[]
[]
[]
[]
["Instructie"]
["Gebruik dit stappenplan voor ieder gebouwdeel voor de beoordeling"]
[]
[]
["Legenda",null,"Zelf invullen"]
[null,null,"Wordt berekend"]
[null,null,"Niet invullen"]
[]
[]
[]
[]
[]
[]
[]
["STAPPENPLAN"]
[]
["Kies het soort onderwijs in het gebouwdeel"]
[]
[]
[]
[]
["Omschrijving","Per gebouwdeel","Per Klaslokaal (indien van toepassing)",null,null,null,null,null,"Toelichtingen"]
["Stap B1: Bepaal het aantal gebouwdelen en bepaal het bijhorende type ventilatiesysteem"]
["Welk gebouwdeel wordt onderzocht voor de beoordeling"]
["Bepaal het type ventilatiesysteem van de geselecteerde gebouwdelen"]
["Stap B2: Selecteer de bepalingsmethode passend bij het type ventilatiesysteem"]
["Bepaal de bepalingsmethode die past bij het type ventilatiesysteem"]
["Stap B3: Selecteer per gebouwdeel het aantal klaslokalen en maak een selectie van de klaslokalen"]
["Wat is het aantal klaslokalen dat wordt onderzocht in dit gebouwdeel"," ",null,null,null,null,null,null,{"$f":"IF('stappenplan inspectie scholen '!B38=Lijsten!C11,Lijsten!D2,IF('stappenplan inspectie scholen '!B38=Lijsten!C12,Lijsten!D3,IF('stappenplan inspectie scholen '!B38=Lijsten!C13,Lijsten!D4,\"\")))","v":""}]
["Welke van de onderstaande redenen zijn gebruikt voor de selectie van de klaslokalen (meer antwoorden mogelijk)"]
["Bezetting",null,null,null,null,null,null,null,"Kies lokalen met de meeste leerlingen"]
["Gevel oriëntatie",null,null,null,null,null,null,null,"In het geval van natuurlijke ventilatie selecteer klaslokalen met verschillende geveloriëntaties vanwege de invloed van de windrichting"]
["Klachten",null,null,null,null,null,null,null,"Selecteer klaslokalen waar docenten of leerlingen vaker (comfort)klachten melden"]
["Verdieping",null,null,null,null,null,null,null,"Selecteer de klaslokalen van verschillende verdiepingen bij meer-laags schoolgebouwen"]
["Leeftijd leerlingen",null,null,null,null,null,null,null,"Selecteer in ieder geval minstens één klaslokaal per school met een bovenbouw groep/klas "]
["Grootte klaslokaal",null,null,null,null,null,null,null,"Selecteer het kleinste klaslokaal (worst case) indien de grootte van de klaslokalen sterk van elkaar afwijken"]
["Anders"]
["Stap B4: Verzamel alle gegevens van het schoolgebouw, bezettingen en klaslokalen","Klaslokaal nr:",1,2,3,4,5,6]
["Gegevens klaslokaal"]
["Ruimtenaam/Ruimtenummer"]
["Lengte klaslokaal"]
["Breedte klaslokaal"]
["Hoogte klaslokaal"]
["Vloeroppervlakte klaslokaal",null,{"$f":"IF(OR(C52=0,C53=\"\"),\"\",C52*C53)","v":""},{"$f":"IF(OR(D52=0,D53=\"\"),\"\",D52*D53)","v":""},"","","",""]
["Ruimtevolume klaslokaal",null,{"$f":"IF(OR(C55=\"\",C54=\"\"),\"\",C55*C54)","v":""},{"$f":"IF(OR(D55=\"\",D54=\"\"),\"\",D55*D54)","v":""},"","","",""]
["Orientatie gevel",null,null,null,null,null,null,null,"Indien er meerdere gevels aanwezig zijn in een klaslokaal, kies dan de gevel met de meeste te openen ramen"]
["Bezetting tijdens ontwerp",null,null,null,null,null,null,null,"Voor regulier onderwijs is de ontwerpbezetting meestal 31 en voor speciaal onderwijs 16 (inclusief 1 leerkracht)"]
["Bezetting tijdens meting (aangetroffen)",null,null,null,null,null,null,null,"De werkelijke bezetting (aantal leerlingen en leerkrachten) "]
["Leeftijdscategorie",null,null,null,null,null,null,null,"OB=Onderbouw;BB=Bovenbouw"]
["Controleer of doorstroming van ventilatie mogelijk is (geen opstakels)"]
["Type Ventilatiesysteem",null,{"$f":"IF($B$36=Lijsten!$B$2,\"A\",IF($B$36=Lijsten!$B$3,\"B\",IF($B$36=Lijsten!$B$4,\"C\",IF($B$36=Lijsten!$B$5,\"D\",\"\"))))","v":""},{"$f":"IF($B$36=Lijsten!$B$2,\"A\",IF($B$36=Lijsten!$B$3,\"B\",IF($B$36=Lijsten!$B$4,\"C\",IF($B$36=Lijsten!$B$5,\"D\",\"\"))))","v":""},{"$f":"IF($B$36=Lijsten!$B$2,\"A\",IF($B$36=Lijsten!$B$3,\"B\",IF($B$36=Lijsten!$B$4,\"C\",IF($B$36=Lijsten!$B$5,\"D\",\"\"))))","v":""},{"$f":"IF($B$36=Lijsten!$B$2,\"A\",IF($B$36=Lijsten!$B$3,\"B\",IF($B$36=Lijsten!$B$4,\"C\",IF($B$36=Lijsten!$B$5,\"D\",\"\"))))","v":""},{"$f":"IF($B$36=Lijsten!$B$2,\"A\",IF($B$36=Lijsten!$B$3,\"B\",IF($B$36=Lijsten!$B$4,\"C\",IF($B$36=Lijsten!$B$5,\"D\",\"\"))))","v":""},{"$f":"IF($B$36=Lijsten!$B$2,\"A\",IF($B$36=Lijsten!$B$3,\"B\",IF($B$36=Lijsten!$B$4,\"C\",IF($B$36=Lijsten!$B$5,\"D\",\"\"))))","v":""},"A=systeem A; B=systeem B; C=systeem C;D=Systeem D"]
["Bepalingsmethode",null,{"$f":"IF($B$38=Lijsten!$C$11,\"Cap\",IF($B$38=Lijsten!$C$12,\"Deb\",IF($B$38=Lijsten!$C$13,\"CO2\",\"\")))","v":""},{"$f":"IF($B$38=Lijsten!$C$11,\"Cap\",IF($B$38=Lijsten!$C$12,\"Deb\",IF($B$38=Lijsten!$C$13,\"CO2\",\"\")))","v":""},{"$f":"IF($B$38=Lijsten!$C$11,\"Cap\",IF($B$38=Lijsten!$C$12,\"Deb\",IF($B$38=Lijsten!$C$13,\"CO2\",\"\")))","v":""},{"$f":"IF($B$38=Lijsten!$C$11,\"Cap\",IF($B$38=Lijsten!$C$12,\"Deb\",IF($B$38=Lijsten!$C$13,\"CO2\",\"\")))","v":""},{"$f":"IF($B$38=Lijsten!$C$11,\"Cap\",IF($B$38=Lijsten!$C$12,\"Deb\",IF($B$38=Lijsten!$C$13,\"CO2\",\"\")))","v":""},{"$f":"IF($B$38=Lijsten!$C$11,\"Cap\",IF($B$38=Lijsten!$C$12,\"Deb\",IF($B$38=Lijsten!$C$13,\"CO2\",\"\")))","v":""},"Cap=Capaciteitsbepaling; Deb=Debiet-meting; CO2=CO2-meting"]
["Stap B5: Voer de beoordeling (indien noodzakelijk) uit conform van één van de drie bepalingsmethoden",null,null,null,null,null,null,null,"Noot m.b.t. indien noodzakelijk: Beoordeling kan ook plaatsvinden m.b.v. revisietekeningen, ventilatieberekeninge en inregelrapporten, aangevuld met steekproefsgewijze debietmetingen."]
["Kies of de natuurlijke ventilatie plaatvindt door te openen ramen/deuren of gevelroosters",null,null,null,null,null,null,null,"Kies Gevelroosters als er gevelroosters aanwezig zijn in de klaslokalen"]
[]
["Capaciteitsbepaling bij Ramen en Deuren"]
["Bepaal het aantal te openen delen (ramen, buitendeuren)"]
["klik hier om de gegevens per buitendeur en raam op te geven"]
["Zijn er slotjes aanwezig op de ramen?"]
["Is de bediening bereikbaar vanaf de grond?"]
["Werkt het openen van de ramen soepel?"]
["Zijn er een meerdere standen van het raam mogelijk, incl. kierstand?"]
["Vormen de gordijnen, lamellen, etc. voor de ramen tijdens gebruik een grote belemmering?"]
[]
["Capaciteitsbepaling bij Gevelroosters"]
["Bepaal het aantal gevelroosters"]
["Klik hier om de gegevens per gevelrooster op te geven"]
["Noteer het merk van het rooster",null,null,null,null,null,null,null,"Indien beschikbaar"]
["Noteer het type van het rooster",null,null,null,null,null,null,null,"Indien beschikbaar"]
["Werkt het openen van de roosters  soepel?"]
["Vormen de gordijnen, lamellen, etc. voor de ramen tijdens gebruik een grote belemmering?"]
[]
["CO2-meting"]
["Plaats de CO2-meters een half uur voor de start van de lessen"]
["Plaats op een hoogte van 1,5 meter in het klaslokaal ",null,null,null,null,null,null,null,"Voorkom de invloed van ramen, deuren, roosters en kinderen om tot een representatieve meting te komen"]
["Laat de CO2-meter staan tot minimaal twee uur na de laatste les in het klaslokaal zodat het verloop van de CO2-concentratie goed in beeld gebracht wordt "]
[]
["Debiet-meting"]
["Controleer of sprake is van een CO2- of temperatuur-gestuurd ventilatiesysteem. Als dit het geval is zal de sensor overbrugd moeten worden voorafgaand aan de meting, zodat in de hoogste stand wordt gemeten."]
["Controleer of bij het ventilatiesysteem  een meerstandenknop aanwezig is. ",null,null,null,null,null,null,null,"Meet in een zo hoog mogelijke stand waarbij het geluidniveau nog acceptabel is (ca. 35-40 dB)."]
["Controleer of er met 100% buitenlucht wordt geventileerd (zonder recirculatie), zo niet stel dan alsnog het ventilatiesysteem in op 100% buitenlucht;"]
["Noteer in welke situatie wordt gemeten: CO2-sturing overbrugd/stand van de meerstandenknop / “as is”.",null,null,null,null,null,null,null,"CO2 uit=CO2 sturing overbrugd, Stand 1-7=1-7, As Is=niest is aangepast aan de sturing"]
["Sluit ramen en deuren tijdens de meting."]
["Kies of het Debiet wordt gemeten met een roostermeting of een kanaalmeting"]
[]
["Roostermeting"]
["Meet alle actieve luchttoevoer voorzieningen"]
["Klik hier om de gemeten debieten per rooster op te geven"]
["Meet alle actieve luchtafzuig voorzieningen, en noteer hier de optelling van alle luchtafvoerdebieten in het klaslokaal [m3/h]"]
[]
["Kanaalmeting"]
["Bepaal de meest geschikte meetplek"]
["Stel aantal meetpunten vast in het kanaal"]
["Meet de luchtsnelheden"]
["Bepaal de gemiddelde snelheid in het kanaal [m/s]"]
["Bepaal de oppervlakte van de doorsnede van het kanaal [m2]"]
["Stap C1: Bepaal de Toetswaarden"]
["Wat is de toetswaarde met betrekking tot het Bouwbesluit? [dm3/s per persoon]"]
["Wat is de Toetswaarde voor de CO2-grenswaarde? [ppm]"]
["Stap C2: Analyseer de meetgegevens",null,1,2,3,4,5,6]
["Capaciteitsbepaling bij Ramen en Deuren"]
["Klik hier om de capaciteit te bepalen"]
["Controleer de spuivoorzieningen op aanwezigheid en goede werking"]
["Totale capaciteit van alle ventilatievoorzieningen [dm3/s]",null,{"$f":"'Capaciteitsbepaling - Ramen'!B97","v":""},{"$f":"'Capaciteitsbepaling - Ramen'!B107","v":""},{"$f":"'Capaciteitsbepaling - Ramen'!B117","v":""},{"$f":"'Capaciteitsbepaling - Ramen'!B127","v":""},{"$f":"'Capaciteitsbepaling - Ramen'!B137","v":""},{"$f":"'Capaciteitsbepaling - Ramen'!B147","v":""}]
[]
["Capaciteitsbepaling bij Gevelroosters"]
["Klik hier om de capaciteit te bepalen"]
["Totale capaciteit van alle ventilatievoorzieningen [dm3/s]",null,{"$f":"'Capaciteitsbepaling - Roosters'!B75","v":""},{"$f":"'Capaciteitsbepaling - Roosters'!B81","v":""},{"$f":"'Capaciteitsbepaling - Roosters'!B87","v":""},{"$f":"'Capaciteitsbepaling - Roosters'!B93","v":""},{"$f":"'Capaciteitsbepaling - Roosters'!B99","v":""},{"$f":"'Capaciteitsbepaling - Roosters'!B105","v":""}]
[]
["CO2-meting"]
["Klik hier om naar de CO2-analyse op basis van de metingen"]
["P98 percentiel per klaslokaal",null,{"$f":"'CO2-meting'!C22","v":""},{"$f":"'CO2-meting'!D22","v":""},{"$f":"'CO2-meting'!E22","v":""},{"$f":"'CO2-meting'!F22","v":""},{"$f":"'CO2-meting'!G22","v":""},{"$f":"'CO2-meting'!H22","v":""}]
["Verzamel op basis van de dichtstbijzijnde KNMI weerstation de volgende gegevens voor de betreffende meetdag",null,null,null,null,null,null,null,"http://projects.knmi.nl/klimatologie/daggegevens/"]
["Maximale uurgemiddelde windsneldheid (gebruik windkracht in Bft)"]
["Overheersende windrichting"]
["Maximale buitentemperatuur"]
["Normale buitentemperatuur van het jaargetijde"]
["Oordeel over representatieve meetdag met betrekking tot weersomstandigheid",{"$f":"IF(OR(B125=\"\",B127=\"\"),\"\",IF(AND(B125<6,B127<20),\"Wel Representatief\",\"Niet Representatief\"))","v":""}]
["Controleer de spuivoorzieningen op aanwezigheid en goede werking"]
["Maak per klaslokaal een grafiek van het CO2-verloop over de gemeten periode"]
[]
["Debietmetingen - Rooster"]
["klik hier om naar de analyse te gaan voor de debietmetingen"]
["Controleer de spuivoorzieningen op aanwezigheid en goede werking"]
["Totale debiet van alle roosters in het klaslokaal [m3/h]",null,{"$f":"'Debiet-metingen - Rooster'!B44","v":""},{"$f":"'Debiet-metingen - Rooster'!B47","v":""},{"$f":"'Debiet-metingen - Rooster'!B50","v":""},{"$f":"'Debiet-metingen - Rooster'!B53","v":""},{"$f":"'Debiet-metingen - Rooster'!B56","v":""},{"$f":"'Debiet-metingen - Rooster'!B59","v":""}]
["CO2 equivalent",null,{"$f":"IF(OR(C58=\"\",C136=\"\"),\"\",400+((C58*Lijsten!$P$6*1000000))/'stappenplan inspectie scholen '!C136)","v":""},{"$f":"IF(OR(D58=\"\",D136=\"\"),\"\",400+((D58*Lijsten!$P$6*1000000))/'stappenplan inspectie scholen '!D136)","v":""},{"$f":"IF(OR(E58=\"\",E136=\"\"),\"\",400+((E58*Lijsten!$P$6*1000000))/'stappenplan inspectie scholen '!E136)","v":""},{"$f":"IF(OR(F58=\"\",F136=\"\"),\"\",400+((F58*Lijsten!$P$6*1000000))/'stappenplan inspectie scholen '!F136)","v":""},{"$f":"IF(OR(G58=\"\",G136=\"\"),\"\",400+((G58*Lijsten!$P$6*1000000))/'stappenplan inspectie scholen '!G136)","v":""},{"$f":"IF(OR(H58=\"\",H136=\"\"),\"\",400+((H58*Lijsten!$P$6*1000000))/'stappenplan inspectie scholen '!H136)","v":""}]
[]
["Debietmetingen - Kanaal"]
["Controleer de spuivoorzieningen op aanwezigheid en goede werking"]
["Bereken het debiet in het kanaal voor het betreffende klaslokaal [m3/h]",null,{"$f":"IF(OR(C106=\"\",C107=\"\"),\"\",C107*C106*3600)","v":""},{"$f":"IF(OR(D106=\"\",D107=\"\"),\"\",D107*D106*3600)","v":""},"","","",""]
["CO2 equivalent",null,{"$f":"IF(OR(C58=\"\",C141=\"\"),\"\",400+(C58*Lijsten!$P$6*1000000/'stappenplan inspectie scholen '!C141))","v":""},{"$f":"IF(OR(D58=\"\",D141=\"\"),\"\",400+(D58*Lijsten!$P$6*1000000/'stappenplan inspectie scholen '!D141))","v":""},{"$f":"IF(OR(E58=\"\",E141=\"\"),\"\",400+(E58*Lijsten!$P$6*1000000/'stappenplan inspectie scholen '!E141))","v":""},{"$f":"IF(OR(F58=\"\",F141=\"\"),\"\",400+(F58*Lijsten!$P$6*1000000/'stappenplan inspectie scholen '!F141))","v":""},{"$f":"IF(OR(G58=\"\",G141=\"\"),\"\",400+(G58*Lijsten!$P$6*1000000/'stappenplan inspectie scholen '!G141))","v":""},{"$f":"IF(OR(H58=\"\",H141=\"\"),\"\",400+(H58*Lijsten!$P$6*1000000/'stappenplan inspectie scholen '!H141))","v":""}]
["Stap C3: Stel beoordeling op per gebouwdeel aan de hand geanalyseerde metingen geef het handelingsperspectief per gebouwdeel "]
["Capaciteitsbepaling bij Ramen en Deuren"]
["Ventilatiecapaciteit per persoon [dm3/s per persoon]",null,{"$f":"IF(OR(C58=\"\",C115=\"\"),\"\",C115/C58)","v":""},{"$f":"IF(OR(D58=\"\",D115=\"\"),\"\",D115/D58)","v":""},"","","",""]
["Beoordeling op basis van ontwerp bezetting",null,{"$f":"IF(C145=\"\",\"\",IF(C145>$B$109,\"V\",\"VN\"))","v":""},{"$f":"IF(D145=\"\",\"\",IF(D145>$B$109,\"V\",\"VN\"))","v":""},"","","","","V=Voldoet;VN=Voldoet Niet"]
[]
["Capaciteitsbepaling bij Roosters"]
["Ventilatiecapaciteit per persoon [dm3/s per persoon]",null,{"$f":"IF(OR(C58=\"\",C119=\"\"),\"\",C119/C58)","v":""},{"$f":"IF(OR(D58=\"\",D119=\"\"),\"\",D119/D58)","v":""},"","","",""]
["Beoordeling op basis van ontwerp bezetting",null,{"$f":"IF(C149=\"\",\"\",IF(C149>$B$109,\"V\",\"VN\"))","v":""},{"$f":"IF(D149=\"\",\"\",IF(D149>$B$109,\"V\",\"VN\"))","v":""},"","","","","V=Voldoet;VN=Voldoet Niet"]
[]
["CO2-meting"]
["Ventilatiehoeveelheid per persoon [dm3/s per persoon]",null,{"$f":"IF(OR('stappenplan inspectie scholen '!C59=\"\",'CO2-meting'!C25=\"\"),\"\",'CO2-meting'!C25/3.6)","v":""},{"$f":"IF(OR('stappenplan inspectie scholen '!D59=\"\",'CO2-meting'!D24=\"\"),\"\",'CO2-meting'!D25/3.6)","v":""},{"$f":"IF(OR('stappenplan inspectie scholen '!E59=\"\",'CO2-meting'!E24=\"\"),\"\",'CO2-meting'!E25/3.6)","v":""},{"$f":"IF(OR('stappenplan inspectie scholen '!F59=\"\",'CO2-meting'!F24=\"\"),\"\",'CO2-meting'!F25/3.6)","v":""},{"$f":"IF(OR('stappenplan inspectie scholen '!G59=\"\",'CO2-meting'!G24=\"\"),\"\",'CO2-meting'!G25/3.6)","v":""},{"$f":"IF(OR('stappenplan inspectie scholen '!H59=\"\",'CO2-meting'!H24=\"\"),\"\",'CO2-meting'!H25/3.6)","v":""}]
["Ventilatiehoeveelheid per persoon (gecorrigeerd naar bezetting) [dm3/s per persoon]",null,{"$f":"IF(OR('stappenplan inspectie scholen '!C59=\"\",'CO2-meting'!C25=\"\"),\"\",'CO2-meting'!C26/3.6)","v":""},{"$f":"IF(OR('stappenplan inspectie scholen '!D59=\"\",'CO2-meting'!D25=\"\"),\"\",'CO2-meting'!D26/3.6)","v":""},{"$f":"IF(OR('stappenplan inspectie scholen '!E59=\"\",'CO2-meting'!E25=\"\"),\"\",'CO2-meting'!E26/3.6)","v":""},{"$f":"IF(OR('stappenplan inspectie scholen '!F59=\"\",'CO2-meting'!F25=\"\"),\"\",'CO2-meting'!F26/3.6)","v":""},{"$f":"IF(OR('stappenplan inspectie scholen '!G59=\"\",'CO2-meting'!G25=\"\"),\"\",'CO2-meting'!G26/3.6)","v":""},{"$f":"IF(OR('stappenplan inspectie scholen '!H59=\"\",'CO2-meting'!H25=\"\"),\"\",'CO2-meting'!H26/3.6)","v":""}]
["Beoordeling bij bezetting tijdens meting",null,{"$f":"IF(C154=\"\",\"\",IF(C154>$B$109,\"V\",\"VN\"))","v":""},{"$f":"IF(D154=\"\",\"\",IF(D154>$B$109,\"V\",\"VN\"))","v":""},"","","","","V=Voldoet;VN=Voldoet Niet"]
["Beoordeling bij bezetting volgens ontwerp",null,{"$f":"IF(C155=\"\",\"\",IF(C154>$B$109,\"V\",\"VN\"))","v":""},{"$f":"IF(D155=\"\",\"\",IF(D154>$B$109,\"V\",\"VN\"))","v":""},"","","","","V=Voldoet;VN=Voldoet Niet"]
["Beoordeling op basis van Programma van Eisen Frisse Scholen bij aangetroffen bezetting",null,{"$f":"IF('CO2-meting'!C22=\"\",\"\",IF(C123<=800,\"A\",IF(C123<=950,\"B\",IF(AND(C123>950,C123<=1200),\"C\",\"\"))))","v":""},{"$f":"IF('CO2-meting'!D22=\"\",\"\",IF(D123<=800,\"A\",IF(D123<=950,\"B\",IF(AND(D123>950,D123<=1200),\"C\",\"\"))))","v":""},{"$f":"IF('CO2-meting'!E22=\"\",\"\",IF(E123<=800,\"A\",IF(E123<=950,\"B\",IF(AND(E123>950,E123<=1200),\"C\",\"\"))))","v":""},{"$f":"IF('CO2-meting'!F22=\"\",\"\",IF(F123<=800,\"A\",IF(F123<=950,\"B\",IF(AND(F123>950,F123<=1200),\"C\",\"\"))))","v":""},{"$f":"IF('CO2-meting'!G22=\"\",\"\",IF(G123<=800,\"A\",IF(G123<=950,\"B\",IF(AND(G123>950,G123<=1200),\"C\",\"\"))))","v":""},{"$f":"IF('CO2-meting'!H22=\"\",\"\",IF(H123<=800,\"A\",IF(H123<=950,\"B\",IF(AND(H123>950,H123<=1200),\"C\",\"\"))))","v":""}]
[]
["Debietmetingen - Rooster"]
["Ventilatiehoeveelheid per persoon [dm3/s per persoon]",null,{"$f":"IF(OR(C58=\"\",C136=\"\"),\"\",C136/C58/3.6)","v":""},{"$f":"IF(OR(D58=\"\",D136=\"\"),\"\",D136/D58/3.6)","v":""},"","","",""]
["Ventilatiehoeveelheid per persoon (gecorrigeerd naar bezetting) [dm3/s per persoon]",null,{"$f":"IF(C160=\"\",\"\",IF(C160>$B$109,\"V\",\"VN\"))","v":""},{"$f":"IF(D160=\"\",\"\",IF(D160>$B$109,\"V\",\"VN\"))","v":""},"","","","","V=Voldoet;VN=Voldoet Niet"]
["Beoordeling op basis van Programma van Eisen Frisse Scholen bij ontwerp bezetting",null,{"$f":"IF(C137=\"\",\"\",IF(C137<=800,\"A\",IF(C137<=950,\"B\",IF(AND(C137>950,C137<=1200),\"C\",\"\"))))","v":""},{"$f":"IF(D137=\"\",\"\",IF(D137<=800,\"A\",IF(D137<=950,\"B\",IF(AND(D137>950,D137<=1200),\"C\",\"\"))))","v":""},"","","",""]
[]
["Debietmetingen - Kanaal"]
["Ventilatiehoeveelheid per persoon [dm3/s per persoon]",null,{"$f":"IF(OR(C58=\"\",C141=\"\"),\"\",C141/C58/3.6)","v":""},{"$f":"IF(OR(D58=\"\",D141=\"\"),\"\",D141/D58/3.6)","v":""},"","","",""]
["Ventilatiehoeveelheid per persoon (gecorrigeerd naar bezetting) [dm3/s per persoon]",null,{"$f":"IF(C165=\"\",\"\",IF(C165>$B$109,\"V\",\"VN\"))","v":""},{"$f":"IF(D165=\"\",\"\",IF(D165>$B$109,\"V\",\"VN\"))","v":""},{"$f":"IF(E165=\"\",\"\",IF(E165>$B$109,\"V\",\"VN\"))","v":""},"","","","V=Voldoet;VN=Voldoet Niet"]
["Beoordeling op basis van Programma van Eisen Frisse Scholen bij ontwerpbezetting",null,{"$f":"IF(C142=\"\",\"\",IF(C142<=800,\"A\",IF(C142<=950,\"B\",IF(AND(C142<950,C142<=1200),\"C\",\"\"))))","v":""},{"$f":"IF(D142=\"\",\"\",IF(D142<=800,\"A\",IF(D142<=950,\"B\",IF(AND(D142<950,D142<=1200),\"C\",\"\"))))","v":""},"","","",""]
["Stap C4: Rapporteer de beoordeling per onderwijsgebouw en conclusies per gebouwdeel aan de opdrachtgever."]
["Gebruik alle gegevens uit deze opname en analyse tool voor de rapportage"]
["Bespreek de rapportage met het schoolbestuur en/of de directies"]

{"sheet":"Capaciteitsbepaling - Ramen","index":2,"n_rows":148,"n_cols":13,"rows_kept":148,"cut":false,"hidden":false,"merged":[[18,2,18,11],[86,2,86,11],[20,0,20,11],[31,0,31,11],[42,0,42,11],[53,0,53,11],[64,0,64,11],[75,0,75,11],[138,0,138,11],[88,0,88,11],[98,0,98,11],[108,0,108,11],[118,0,118,11],[128,0,128,11]]}
[]
[]
[]
[]
[]
[]
[]
[]
[]
[]
[]
[]
[]
[]
[]
[]
["Capaciteitsbepaling - Ramen"]
[]
["Opname",null,"Raam/deur nr.:",null,null,null,null,null,null,null,null,null,"Toelichtingen"]
[null,null,1,2,3,4,5,6,7,8,9,10]
[]
["Noteer het klaslokaal nummer waarvoor de opname wordt uitgevoerd",1]
["Noteer van elk te openen deel in welke gevel deze ligt",null,null,null,null,null,null,null,null,null,null,null,"A= hoofdgevel, B= tegenoverliggende gevel, C/D=zijgevel (hiermee kan worden bepaald of dwarsventilatie mogelijk is)"]
["Meet de opening (het vrije oppervlakte van het raam) van alle ramen door de maat te meten (hoogte h en breedte b) van de dagkanten van ieder raam en meet de maximaal haalbare (kier)afstand u loodrecht op het kozijn  (zie figuur)",null,null,null,null,null,null,null,null,null,null,null," De haalbare kierafstand is noodzakelijk om de hoek te bepalen voor de maximale opening van de buitendeur of raam (bij schuiframen niet nodig)"]
["Hoogte van het raam of buitendeur h [m]"]
["Breedte van het raam of buitendeur b [m]"]
["Maximaal haalbare (kier)afstand u [m]"]
[]
["Noteer aan welke zijde de scharnieren zitten (zijkant of boven/onder). Dit is nodig om de openingshoek te bepalen.",null,null,null,null,null,null,null,null,null,null,null,"ZK= Zijkant. BK=Bovenkant, OK=Onderkant,ZOK=Zijkant&Onderkant"]
["Geef per te openen raam aan of de onderzijde van de opening boven / onder 1,8 m vanaf de grond ligt ",null,null,null,null,null,null,null,null,null,null,null,"Dit is van belang in verband met tochtrisico"]
["Klik hier om terug te keren naar het stappenplan als er geen opnames meer zijn van andere klaslokalen"]
[]
["Noteer het klaslokaal nummer waarvoor de opname wordt uitgevoerd",2]
["Noteer van elk te openen deel in welke gevel deze ligt",null,null,null,null,null,null,null,null,null,null,null,"A= hoofdgevel, B= tegenoverliggende gevel, C/D=zijgevel (hiermee kan worden bepaald of dwarsventilatie mogelijk is)"]
["Meet de opening (het vrije oppervlakte van het raam) van alle ramen door de maat te meten (hoogte h en breedte b) van de dagkanten van ieder raam en meet de maximaal haalbare (kier)afstand u loodrecht op het kozijn  (zie figuur)",null,null,null,null,null,null,null,null,null,null,null," De haalbare kierafstand is noodzakelijk om de hoek te bepalen voor de maximale opening van de buitendeur of raam (bij schuiframen niet nodig)"]
["Hoogte van het raam of buitendeur h [m]"]
["Breedte van het raam of buitendeur b [m]"]
["Maximaal haalbare (kier)afstand u [m]"]
[]
["Noteer aan welke zijde de scharnieren zitten (zijkant of boven/onder). Dit is nodig om de openingshoek te bepalen.",null,null,null,null,null,null,null,null,null,null,null,"ZK= Zijkant. BK=Bovenkant, OK=Onderkant,ZOK=Zijkant&Onderkant"]
["Geef per te openen raam aan of de onderzijde van de opening boven / onder 1,8 m vanaf de grond ligt ",null,null,null,null,null,null,null,null,null,null,null,"Dit is van belang in verband met tochtrisico"]
["Klik hier om terug te keren naar het stappenplan als er geen opnames meer zijn van andere klaslokalen"]
[]
["Noteer het klaslokaal nummer waarvoor de opname wordt uitgevoerd",3]
["Noteer van elk te openen deel in welke gevel deze ligt",null,null,null,null,null,null,null,null,null,null,null,"A= hoofdgevel, B= tegenoverliggende gevel, C/D=zijgevel (hiermee kan worden bepaald of dwarsventilatie mogelijk is)"]
["Meet de opening (het vrije oppervlakte van het raam) van alle ramen door de maat te meten (hoogte h en breedte b) van de dagkanten van ieder raam en meet de maximaal haalbare (kier)afstand u loodrecht op het kozijn  (zie figuur)",null,null,null,null,null,null,null,null,null,null,null," De haalbare kierafstand is noodzakelijk om de hoek te bepalen voor de maximale opening van de buitendeur of raam (bij schuiframen niet nodig)"]
["Hoogte van het raam of buitendeur h [m]"]
["Breedte van het raam of buitendeur b [m]"]
["Maximaal haalbare (kier)afstand u [m]"]
[]
["Noteer aan welke zijde de scharnieren zitten (zijkant of boven/onder). Dit is nodig om de openingshoek te bepalen.",null,null,null,null,null,null,null,null,null,null,null,"ZK= Zijkant. BK=Bovenkant, OK=Onderkant,ZOK=Zijkant&Onderkant"]
["Geef per te openen raam aan of de onderzijde van de opening boven / onder 1,8 m vanaf de grond ligt ",null,null,null,null,null,null,null,null,null,null,null,"Dit is van belang in verband met tochtrisico"]
["Klik hier om terug te keren naar het stappenplan als er geen opnames meer zijn van andere klaslokalen"]
[]
["Noteer het klaslokaal nummer waarvoor de opname wordt uitgevoerd",4]
["Noteer van elk te openen deel in welke gevel deze ligt",null,null,null,null,null,null,null,null,null,null,null,"A= hoofdgevel, B= tegenoverliggende gevel, C/D=zijgevel (hiermee kan worden bepaald of dwarsventilatie mogelijk is)"]
["Meet de opening (het vrije oppervlakte van het raam) van alle ramen door de maat te meten (hoogte h en breedte b) van de dagkanten van ieder raam en meet de maximaal haalbare (kier)afstand u loodrecht op het kozijn  (zie figuur)",null,null,null,null,null,null,null,null,null,null,null," De haalbare kierafstand is noodzakelijk om de hoek te bepalen voor de maximale opening van de buitendeur of raam (bij schuiframen niet nodig)"]
["Hoogte van het raam of buitendeur h [m]"]
["Breedte van het raam of buitendeur b [m]"]
["Maximaal haalbare (kier)afstand u [m]"]
[]
["Noteer aan welke zijde de scharnieren zitten (zijkant of boven/onder). Dit is nodig om de openingshoek te bepalen.",null,null,null,null,null,null,null,null,null,null,null,"ZK= Zijkant. BK=Bovenkant, OK=Onderkant,ZOK=Zijkant&Onderkant"]
["Geef per te openen raam aan of de onderzijde van de opening boven / onder 1,8 m vanaf de grond ligt ",null,null,null,null,null,null,null,null,null,null,null,"Dit is van belang in verband met tochtrisico"]
["Klik hier om terug te keren naar het stappenplan als er geen opnames meer zijn van andere klaslokalen"]
[]
["Noteer het klaslokaal nummer waarvoor de opname wordt uitgevoerd",5]
["Noteer van elk te openen deel in welke gevel deze ligt",null,null,null,null,null,null,null,null,null,null,null,"A= hoofdgevel, B= tegenoverliggende gevel, C/D=zijgevel (hiermee kan worden bepaald of dwarsventilatie mogelijk is)"]
["Meet de opening (het vrije oppervlakte van het raam) van alle ramen door de maat te meten (hoogte h en breedte b) van de dagkanten van ieder raam en meet de maximaal haalbare (kier)afstand u loodrecht op het kozijn  (zie figuur)",null,null,null,null,null,null,null,null,null,null,null," De haalbare kierafstand is noodzakelijk om de hoek te bepalen voor de maximale opening van de buitendeur of raam (bij schuiframen niet nodig)"]
["Hoogte van het raam of buitendeur h [m]"]
["Breedte van het raam of buitendeur b [m]"]
["Maximaal haalbare (kier)afstand u [m]"]
[]
["Noteer aan welke zijde de scharnieren zitten (zijkant of boven/onder). Dit is nodig om de openingshoek te bepalen.",null,null,null,null,null,null,null,null,null,null,null,"ZK= Zijkant. BK=Bovenkant, OK=Onderkant,ZOK=Zijkant&Onderkant"]
["Geef per te openen raam aan of de onderzijde van de opening boven / onder 1,8 m vanaf de grond ligt ",null,null,null,null,null,null,null,null,null,null,null,"Dit is van belang in verband met tochtrisico"]
["Klik hier om terug te keren naar het stappenplan als er geen opnames meer zijn van andere klaslokalen"]
[]
["Noteer het klaslokaal nummer waarvoor de opname wordt uitgevoerd",6]
["Noteer van elk te openen deel in welke gevel deze ligt",null,null,null,null,null,null,null,null,null,null,null,"A= hoofdgevel, B= tegenoverliggende gevel, C/D=zijgevel (hiermee kan worden bepaald of dwarsventilatie mogelijk is)"]
["Meet de opening (het vrije oppervlakte van het raam) van alle ramen door de maat te meten (hoogte h en breedte b) van de dagkanten van ieder raam en meet de maximaal haalbare (kier)afstand u loodrecht op het kozijn  (zie figuur)",null,null,null,null,null,null,null,null,null,null,null," De haalbare kierafstand is noodzakelijk om de hoek te bepalen voor de maximale opening van de buitendeur of raam (bij schuiframen niet nodig)"]
["Hoogte van het raam of buitendeur h [m]"]
["Breedte van het raam of buitendeur b [m]"]
["Maximaal haalbare (kier)afstand u [m]"]
[]
["Noteer aan welke zijde de scharnieren zitten (zijkant of boven/onder). Dit is nodig om de openingshoek te bepalen.",null,null,null,null,null,null,null,null,null,null,null,"ZK= Zijkant. BK=Bovenkant, OK=Onderkant,ZOK=Zijkant&Onderkant"]
["Geef per te openen raam aan of de onderzijde van de opening boven / onder 1,8 m vanaf de grond ligt ",null,null,null,null,null,null,null,null,null,null,null,"Dit is van belang in verband met tochtrisico"]
["Klik hier om terug te keren naar het stappenplan"]
["Analyse",null,"Raam/deur nr.:",null,null,null,null,null,null,null,null,null,"Toelichtingen"]
[null,null,1,2,3,4,5,6,7,8,9,10]
[]
["Noteer het klaslokaal nummer waarvoor de Analyse wordt uitgevoerd",1]
["Bereken de hoek op basis van het te openen raam bij een kiep of klapraam",null,{"$f":"IF(C25+C27=0,\"\",DEGREES(TAN(C27/C25)))","v":""},"","","","","","","","","","Maximaal 90 graden noteren bij een volledig open raam"]
["Bereken de hoek op basis van het te openen raam bij draairaam",null,{"$f":"IF(C26+C27=0,\"\",DEGREES(TAN(C27/C26)))","v":""},"","","","","","","","",""]
["Bepaal de luchtsnelheid over het raam of de buitendeur",{"$f":"IF(AND(C23=\"A\",D23=\"A\",E23=\"A\",F23=\"A\",G23=\"A\",H23=\"A\",I23=\"A\",J23=\"A\",K23=\"A\",L23=\"A\"),0.1,0.4)","v":0.4}]
["Bepaal de vermenigvuldigingsfaktor met behulp van de de berekende hoek middels onderstaand  figuur"]
[]
["Bereken de effectieve oppervlakte van de Raamvoorziening",null,{"$f":"IF(C94=\"\",\"\",C25*C26*C94)","v":""},"","","","","","","","",""]
["Capaciteit van alle te openen ramen en buitendeuren",{"$f":"IF(SUM(C96:L96)=0,\"\",SUM(C96:L96)*B93*1000)","v":""}]
["Klik hier om terug te keren naar het stapenplan als er geen andere klaslokalen zijn waar voor analyses  uitgevoerd moeten worden"]
[]
["Noteer het klaslokaal nummer waarvoor de Analyse wordt uitgevoerd",2]
["Bereken de hoek op basis van het te openen raam bij een kiep of klapraam",null,{"$f":"IF(C36+C38=0,\"\",DEGREES(TAN(C38/C36)))","v":""},"","","","","","","","","","Maximaal 90 graden noteren bij een volledig open raam"]
["Bereken de hoek op basis van het te openen raam bij draairaam",null,{"$f":"IF(C37+C38=0,\"\",DEGREES(TAN(C38/C37)))","v":""},"","","","","","","","",""]
["Bepaal de luchtsnelheid over het raam of de buitendeur",{"$f":"IF(AND(C33=\"A\",D33=\"A\",E33=\"A\",F33=\"A\",G33=\"A\",H33=\"A\",I33=\"A\",J33=\"A\",K33=\"A\",L33=\"A\"),0.1,0.4)","v":0.4}]
["Bepaal de vermenigvuldigingsfaktor met behulp van de de berekende hoek middels onderstaand  figuur"]
[]
["Bereken de effectieve oppervlakte van de Raamvoorziening",null,{"$f":"IF(C104=\"\",\"\",C36*C37*C104)","v":""},"","","","","","","","",""]
["Capaciteit van alle te openen ramen en buitendeuren",{"$f":"IF(SUM(C106:L106)=0,\"\",SUM(C106:L106)*B103*1000)","v":""}]
["Klik hier om terug te keren naar het stapenplan als er geen andere klaslokalen zijn waar voor analyses  uitgevoerd moeten worden"]
[]
["Noteer het klaslokaal nummer waarvoor de Analyse wordt uitgevoerd",3]
["Bereken de hoek op basis van het te openen raam bij een kiep of klapraam",null,{"$f":"IF(C47+C49=0,\"\",DEGREES(TAN(C49/C47)))","v":""},"","","","","","","","","","Maximaal 90 graden noteren bij een volledig open raam"]
["Bereken de hoek op basis van het te openen raam bij draairaam",null,{"$f":"IF(C48+C49=0,\"\",DEGREES(TAN(C49/C48)))","v":""},"","","","","","","","",""]
["Bepaal de luchtsnelheid over het raam of de buitendeur",{"$f":"IF(AND(C43=\"A\",D43=\"A\",E43=\"A\",F43=\"A\",G43=\"A\",H43=\"A\",I43=\"A\",J43=\"A\",K43=\"A\",L43=\"A\"),0.1,0.4)","v":0.4}]
["Bepaal de vermenigvuldigingsfaktor met behulp van de de berekende hoek middels onderstaand  figuur"]
[]
["Bereken de effectieve oppervlakte van de Raamvoorziening",null,{"$f":"IF(C114=\"\",\"\",C47*C48*C114)","v":""},"","","","","","","","",""]
["Capaciteit van alle te openen ramen en buitendeuren",{"$f":"IF(SUM(C116:L116)=0,\"\",SUM(C116:L116)*B113*1000)","v":""}]
["Klik hier om terug te keren naar het stapenplan als er geen andere klaslokalen zijn waar voor analyses  uitgevoerd moeten worden"]
[]
["Noteer het klaslokaal nummer waarvoor de Analyse wordt uitgevoerd",4]
["Bereken de hoek op basis van het te openen raam bij een kiep of klapraam",null,{"$f":"IF(C58+C60=0,\"\",DEGREES(TAN(C60/C58)))","v":""},"","","","","","","","","","Maximaal 90 graden noteren bij een volledig open raam"]
["Bereken de hoek op basis van het te openen raam bij draairaam",null,{"$f":"IF(C59+C60=0,\"\",DEGREES(TAN(C60/C59)))","v":""},"","","","","","","","",""]
["Bepaal de luchtsnelheid over het raam of de buitendeur",{"$f":"IF(AND(C53=\"A\",D53=\"A\",E53=\"A\",F53=\"A\",G53=\"A\",H53=\"A\",I53=\"A\",J53=\"A\",K53=\"A\",L53=\"A\"),0.1,0.4)","v":0.4}]
["Bepaal de vermenigvuldigingsfaktor met behulp van de de berekende hoek middels onderstaand  figuur"]
[]
["Bereken de effectieve oppervlakte van de Raamvoorziening",null,{"$f":"IF(C124=\"\",\"\",C58*C59*C124)","v":""},"","","","","","","","",""]
["Capaciteit van alle te openen ramen en buitendeuren",{"$f":"IF(SUM(C126:L126)=0,\"\",SUM(C126:L126)*B123*1000)","v":""}]
["Klik hier om terug te keren naar het stapenplan als er geen andere klaslokalen zijn waar voor analyses  uitgevoerd moeten worden"]
[]
["Noteer het klaslokaal nummer waarvoor de Analyse wordt uitgevoerd",5]
["Bereken de hoek op basis van het te openen raam bij een kiep of klapraam",null,{"$f":"IF(C69+C71=0,\"\",DEGREES(TAN(C71/C69)))","v":""},"","","","","","","","","","Maximaal 90 graden noteren bij een volledig open raam"]
["Bereken de hoek op basis van het te openen raam bij draairaam",null,{"$f":"IF(C70+C71=0,\"\",DEGREES(TAN(C71/C70)))","v":""},"","","","","","","","",""]
["Bepaal de luchtsnelheid over het raam of de buitendeur",{"$f":"IF(AND(C63=\"A\",D63=\"A\",E63=\"A\",F63=\"A\",G63=\"A\",H63=\"A\",I63=\"A\",J63=\"A\",K63=\"A\",L63=\"A\"),0.1,0.4)","v":0.4}]
["Bepaal de vermenigvuldigingsfaktor met behulp van de de berekende hoek middels onderstaand  figuur"]
[]
["Bereken de effectieve oppervlakte van de Raamvoorziening",null,{"$f":"IF(C134=\"\",\"\",C69*C70*C134)","v":""},"","","","","","","","",""]
["Capaciteit van alle te openen ramen en buitendeuren",{"$f":"IF(SUM(C136:L136)=0,\"\",SUM(C136:L136)*B133*1000)","v":""}]
["Klik hier om terug te keren naar het stapenplan als er geen andere klaslokalen zijn waar voor analyses  uitgevoerd moeten worden"]
[]
["Noteer het klaslokaal nummer waarvoor de Analyse wordt uitgevoerd",6]
["Bereken de hoek op basis van het te openen raam bij een kiep of klapraam",null,{"$f":"IF(C80+C82=0,\"\",DEGREES(TAN(C82/C80)))","v":""},"","","","","","","","","","Maximaal 90 graden noteren bij een volledig open raam"]
["Bereken de hoek op basis van het te openen raam bij draairaam",null,{"$f":"IF(C81+C82=0,\"\",DEGREES(TAN(C82/C81)))","v":""},"","","","","","","","",""]
["Bepaal de luchtsnelheid over het raam of de buitendeur",{"$f":"IF(AND(C74=\"A\",D74=\"A\",E74=\"A\",F74=\"A\",G74=\"A\",H74=\"A\",I74=\"A\",J74=\"A\",K74=\"A\",L74=\"A\"),0.1,0.4)","v":0.4}]
["Bepaal de vermenigvuldigingsfaktor met behulp van de de berekende hoek middels onderstaand  figuur"]
[]
["Bereken de effectieve oppervlakte van de Raamvoorziening",null,{"$f":"IF(C144=\"\",\"\",C80*C81*C144)","v":""},"","","","","","","","",""]
["Capaciteit van alle te openen ramen en buitendeuren",{"$f":"IF(SUM(C146:L146)=0,\"\",SUM(C146:L146)*B143*1000)","v":""}]
["Klik hier om terug te keren naar het stappenplan"]

{"sheet":"Capaciteitsbepaling - Roosters","index":3,"n_rows":106,"n_cols":13,"rows_kept":106,"cut":false,"hidden":false,"merged":[[18,2,18,11],[68,2,68,11]]}
[]
[]
[]
[]
[]
[]
[]
[]
[]
[]
[]
[]
[]
[]
[]
[]
["Capaciteitsbepaling - Gevelroosters"]
[]
["Opname",null,"Rooster nr.:",null,null,null,null,null,null,null,null,null,"Toelichtingen"]
[null,null,1,2,3,4,5,6,7,8,9,10]
["Noteer het klaslokaal nummer waarvoor de opname wordt uitgevoerd",1]
["Meet het gevelrooster op",null,null,null,null,null,null,null,null,null,null,null," De haalbare kierafstand is noodzakelijk om de hoek te bepalen voor de maximale opening van de buitendeur of raam (bij schuiframen niet nodig)"]
["Lengte van het rooster [m]"]
["Breedte van het rooster [m]"]
["Geef per te openen raam aan of de onderzijde van de opening boven / onder 1,8 m vanaf de grond ligt ",null,null,null,null,null,null,null,null,null,null,null,"Dit is van belang in verband met tochtrisico"]
["Aanwezigheid van rooster of gaas","Nee",{"$f":"IF($B26=\"Ja\",0.5,1)","v":1},{"$f":"IF($B26=\"Ja\",0.5,1)","v":1},1,1,1,1,1,1,1,1]
["Noteer van elk rooster  in welke gevel deze ligt",null,null,null,null,null,null,null,null,null,null,null,"A= hoofdgevel, B= tegenoverliggende gevel, C/D=zijgevel (hiermee kan worden bepaald of dwarsventilatie mogelijk is)"]
["Klik hier om terug te keren naar het stappenplan als er geen opnames meer zijn van andere klaslokalen"]
["Noteer het klaslokaal nummer waarvoor de opname wordt uitgevoerd",2]
["Meet het gevelrooster op",null,null,null,null,null,null,null,null,null,null,null," De haalbare kierafstand is noodzakelijk om de hoek te bepalen voor de maximale opening van de buitendeur of raam (bij schuiframen niet nodig)"]
["Lengte van het rooster [m]"]
["Breedte van het rooster [m]"]
["Geef per te openen raam aan of de onderzijde van de opening boven / onder 1,8 m vanaf de grond ligt ",null,null,null,null,null,null,null,null,null,null,null,"Dit is van belang in verband met tochtrisico"]
["Aanwezigheid van rooster of gaas","Nee",{"$f":"IF($B34=\"Ja\",0.5,1)","v":1},{"$f":"IF($B34=\"Ja\",0.5,1)","v":1},1,1,1,1,1,1,1,1]
["Noteer van elk rooster  in welke gevel deze ligt",null,null,null,null,null,null,null,null,null,null,null,"A= hoofdgevel, B= tegenoverliggende gevel, C/D=zijgevel (hiermee kan worden bepaald of dwarsventilatie mogelijk is)"]
["Klik hier om terug te keren naar het stappenplan als er geen opnames meer zijn van andere klaslokalen"]
["Noteer het klaslokaal nummer waarvoor de opname wordt uitgevoerd",3]
["Meet het gevelrooster op",null,null,null,null,null,null,null,null,null,null,null," De haalbare kierafstand is noodzakelijk om de hoek te bepalen voor de maximale opening van de buitendeur of raam (bij schuiframen niet nodig)"]
["Lengte van het rooster [m]"]
["Breedte van het rooster [m]"]
["Geef per te openen raam aan of de onderzijde van de opening boven / onder 1,8 m vanaf de grond ligt ",null,null,null,null,null,null,null,null,null,null,null,"Dit is van belang in verband met tochtrisico"]
["Aanwezigheid van rooster of gaas","Nee",{"$f":"IF($B42=\"Ja\",0.5,1)","v":1},{"$f":"IF($B42=\"Ja\",0.5,1)","v":1},1,1,1,1,1,1,1,1]
["Noteer van elk rooster  in welke gevel deze ligt",null,null,null,null,null,null,null,null,null,null,null,"A= hoofdgevel, B= tegenoverliggende gevel, C/D=zijgevel (hiermee kan worden bepaald of dwarsventilatie mogelijk is)"]
["Klik hier om terug te keren naar het stappenplan als er geen opnames meer zijn van andere klaslokalen"]
["Noteer het klaslokaal nummer waarvoor de opname wordt uitgevoerd",4]
["Meet het gevelrooster op",null,null,null,null,null,null,null,null,null,null,null," De haalbare kierafstand is noodzakelijk om de hoek te bepalen voor de maximale opening van de buitendeur of raam (bij schuiframen niet nodig)"]
["Lengte van het rooster [m]"]
["Breedte van het rooster [m]"]
["Geef per te openen raam aan of de onderzijde van de opening boven / onder 1,8 m vanaf de grond ligt ",null,null,null,null,null,null,null,null,null,null,null,"Dit is van belang in verband met tochtrisico"]
["Aanwezigheid van rooster of gaas","Nee",{"$f":"IF($B50=\"Ja\",0.5,1)","v":1},{"$f":"IF($B50=\"Ja\",0.5,1)","v":1},1,1,1,1,1,1,1,1]
["Noteer van elk rooster  in welke gevel deze ligt",null,null,null,null,null,null,null,null,null,null,null,"A= hoofdgevel, B= tegenoverliggende gevel, C/D=zijgevel (hiermee kan worden bepaald of dwarsventilatie mogelijk is)"]
["Klik hier om terug te keren naar het stappenplan als er geen opnames meer zijn van andere klaslokalen"]
["Noteer het klaslokaal nummer waarvoor de opname wordt uitgevoerd",5]
["Meet het gevelrooster op",null,null,null,null,null,null,null,null,null,null,null," De haalbare kierafstand is noodzakelijk om de hoek te bepalen voor de maximale opening van de buitendeur of raam (bij schuiframen niet nodig)"]
["Lengte van het rooster [m]"]
["Breedte van het rooster [m]"]
["Geef per te openen raam aan of de onderzijde van de opening boven / onder 1,8 m vanaf de grond ligt ",null,null,null,null,null,null,null,null,null,null,null,"Dit is van belang in verband met tochtrisico"]
["Aanwezigheid van rooster of gaas","Nee",{"$f":"IF($B58=\"Ja\",0.5,1)","v":1},{"$f":"IF($B58=\"Ja\",0.5,1)","v":1},1,1,1,1,1,1,1,1]
["Noteer van elk rooster  in welke gevel deze ligt",null,null,null,null,null,null,null,null,null,null,null,"A= hoofdgevel, B= tegenoverliggende gevel, C/D=zijgevel (hiermee kan worden bepaald of dwarsventilatie mogelijk is)"]
["Klik hier om terug te keren naar het stappenplan als er geen opnames meer zijn van andere klaslokalen"]
["Noteer het klaslokaal nummer waarvoor de opname wordt uitgevoerd",6]
["Meet het gevelrooster op",null,null,null,null,null,null,null,null,null,null,null," De haalbare kierafstand is noodzakelijk om de hoek te bepalen voor de maximale opening van de buitendeur of raam (bij schuiframen niet nodig)"]
["Lengte van het rooster [m]"]
["Breedte van het rooster [m]"]
["Geef per te openen raam aan of de onderzijde van de opening boven / onder 1,8 m vanaf de grond ligt ",null,null,null,null,null,null,null,null,null,null,null,"Dit is van belang in verband met tochtrisico"]
["Aanwezigheid van rooster of gaas","Nee",{"$f":"IF($B66=\"Ja\",0.5,1)","v":1},{"$f":"IF($B66=\"Ja\",0.5,1)","v":1},1,1,1,1,1,1,1,1]
["Noteer van elk rooster  in welke gevel deze ligt",null,null,null,null,null,null,null,null,null,null,null,"A= hoofdgevel, B= tegenoverliggende gevel, C/D=zijgevel (hiermee kan worden bepaald of dwarsventilatie mogelijk is)"]
["Klik hier om terug te keren naar het stappenplan"]
["Analyse",null,"Rooster nr.:",null,null,null,null,null,null,null,null,null,"Toelichtingen"]
[null,null,1,2,3,4,5,6,7,8,9,10]
["Het klaslokaal nummer waarvoor de analyse wordt uitgevoerd",{"$f":"B21","v":1}]
["Oppervlakte van het rooster",null,{"$f":"IF(SUM(C23:C24)=0,\"\",C23*C24)","v":""},"","","","","","","","",""]
["Bereken het effectieve oppervlak van het rooster",null,{"$f":"IF(C72=\"\",\"\",(C72*C26))","v":""},"","","","","","","","",""]
["Bepaal de luchtsnelheid over het raam of de buitendeur",{"$f":"IF(AND(C27=\"A\",D27=\"A\",E27=\"A\",F27=\"A\",G27=\"A\",H27=\"A\",I27=\"A\",J27=\"A\",K27=\"A\",L27=\"A\"),0.1,0.4)","v":0.4}]
["Capaciteit van alle rooster in het klaslokaal",{"$f":"IF(SUM(C73:L73)=0,\"\",SUM(C73:L73)*B74*1000)","v":""}]
["Klik hier om terug te keren naar het stappenplan als er geen analyes meer uitgevoerd moeten worden voor andere klaslokalen"]
["Het klaslokaal nummer waarvoor de analyse wordt uitgevoerd",{"$f":"B29","v":2}]
["Oppervlakte van het rooster",null,{"$f":"IF(SUM(C31:C32)=0,\"\",C31*C32)","v":""},"","","","","","","","",""]
["Bereken het effectieve oppervlak van het rooster",null,{"$f":"IF(C78=\"\",\"\",(C78*C34))","v":""},"","","","","","","","",""]
["Bepaal de luchtsnelheid over het raam of de buitendeur",{"$f":"IF(AND(C33=\"A\",D33=\"A\",E33=\"A\",F33=\"A\",G33=\"A\",H33=\"A\",I33=\"A\",J33=\"A\",K33=\"A\",L33=\"A\"),0.1,0.4)","v":0.4}]
["Capaciteit van alle rooster in het klaslokaal",{"$f":"IF(SUM(C79:L79)=0,\"\",SUM(C79:L79)*B80*1000)","v":""}]
["Klik hier om terug te keren naar het stappenplan als er geen analyes meer uitgevoerd moeten worden voor andere klaslokalen"]
["Het klaslokaal nummer waarvoor de analyse wordt uitgevoerd",{"$f":"B37","v":3}]
["Oppervlakte van het rooster",null,{"$f":"IF(SUM(C39:C40)=0,\"\",C39*C40)","v":""},"","","","","","","","",""]
["Bereken het effectieve oppervlak van het rooster",null,{"$f":"IF(C84=\"\",\"\",(C84*C42))","v":""},"","","","","","","","",""]
["Bepaal de luchtsnelheid over het raam of de buitendeur",{"$f":"IF(AND(C39=\"A\",D39=\"A\",E39=\"A\",F39=\"A\",G39=\"A\",H39=\"A\",I39=\"A\",J39=\"A\",K39=\"A\",L39=\"A\"),0.1,0.4)","v":0.4}]
["Capaciteit van alle rooster in het klaslokaal",{"$f":"IF(SUM(C85:L85)=0,\"\",SUM(C85:L85)*B86*1000)","v":""}]
["Klik hier om terug te keren naar het stappenplan als er geen analyes meer uitgevoerd moeten worden voor andere klaslokalen"]
["Het klaslokaal nummer waarvoor de analyse wordt uitgevoerd",{"$f":"B45","v":4}]
["Oppervlakte van het rooster",null,{"$f":"IF(SUM(C47:C48)=0,\"\",C47*C48)","v":""},"","","","","","","","",""]
["Bereken het effectieve oppervlak van het rooster",null,{"$f":"IF(C90=\"\",\"\",(C90*C50))","v":""},"","","","","","","","",""]
["Bepaal de luchtsnelheid over het raam of de buitendeur",{"$f":"IF(AND(C45=\"A\",D45=\"A\",E45=\"A\",F45=\"A\",G45=\"A\",H45=\"A\",I45=\"A\",J45=\"A\",K45=\"A\",L45=\"A\"),0.1,0.4)","v":0.4}]
["Capaciteit van alle rooster in het klaslokaal",{"$f":"IF(SUM(C91:L91)=0,\"\",SUM(C91:L91)*B92*1000)","v":""}]
["Klik hier om terug te keren naar het stappenplan als er geen analyes meer uitgevoerd moeten worden voor andere klaslokalen"]
["Het klaslokaal nummer waarvoor de analyse wordt uitgevoerd",{"$f":"B53","v":5}]
["Oppervlakte van het rooster",null,{"$f":"IF(SUM(C55:C56)=0,\"\",C55*C56)","v":""},"","","","","","","","",""]
["Bereken het effectieve oppervlak van het rooster",null,{"$f":"IF(C96=\"\",\"\",(C96*C58))","v":""},"","","","","","","","",""]
["Bepaal de luchtsnelheid over het raam of de buitendeur",{"$f":"IF(AND(C51=\"A\",D51=\"A\",E51=\"A\",F51=\"A\",G51=\"A\",H51=\"A\",I51=\"A\",J51=\"A\",K51=\"A\",L51=\"A\"),0.1,0.4)","v":0.4}]
["Capaciteit van alle rooster in het klaslokaal",{"$f":"IF(SUM(C97:L97)=0,\"\",SUM(C97:L97)*B98*1000)","v":""}]
["Klik hier om terug te keren naar het stappenplan als er geen analyes meer uitgevoerd moeten worden voor andere klaslokalen"]
["Het klaslokaal nummer waarvoor de analyse wordt uitgevoerd",{"$f":"B61","v":6}]
["Oppervlakte van het rooster",null,{"$f":"IF(SUM(C63:C64)=0,\"\",C63*C64)","v":""},"","","","","","","","",""]
["Bereken het effectieve oppervlak van het rooster",null,{"$f":"IF(C102=\"\",\"\",(C102*C66))","v":""},"","","","","","","","",""]
["Bepaal de luchtsnelheid over het raam of de buitendeur",{"$f":"IF(AND(C57=\"A\",D57=\"A\",E57=\"A\",F57=\"A\",G57=\"A\",H57=\"A\",I57=\"A\",J57=\"A\",K57=\"A\",L57=\"A\"),0.1,0.4)","v":0.4}]
["Capaciteit van alle rooster in het klaslokaal",{"$f":"IF(SUM(C103:L103)=0,\"\",SUM(C103:L103)*B104*1000)","v":""}]
["Klik hier om terug te keren naar het stappenplan"]

{"sheet":"CO2-meting","index":4,"n_rows":28,"n_cols":9,"rows_kept":28,"cut":false,"hidden":false,"merged":[[18,2,18,7],[27,2,27,7]]}
[]
[]
[]
[]
[]
[]
[]
[]
[]
[]
[]
[]
[]
[]
[]
[]
["CO2-Meting"]
[]
["Opname & Analyse",null,"CO2-Metingen per Klaslokaal",null,null,null,null,null,"Toelichtingen"]
[null,null,1,2,3,4,5,6]
["Klilk hier om de ruwe data per lokaal tijd en CO2-meetwaarden in het tabblad Ruwe data CO2-metingen"]
["Bereken het 98-Percentiel per klaslokaal",null,{"$f":"IF('Ruwe data CO2-metingen'!B21=\"\",\"\",PERCENTILE('Ruwe data CO2-metingen'!B:B,0.98))","v":""},{"$f":"IF('Ruwe data CO2-metingen'!C21=\"\",\"\",PERCENTILE('Ruwe data CO2-metingen'!C:C,0.98))","v":""},{"$f":"IF('Ruwe data CO2-metingen'!D21=\"\",\"\",PERCENTILE('Ruwe data CO2-metingen'!D:D,0.98))","v":""},{"$f":"IF('Ruwe data CO2-metingen'!E21=\"\",\"\",PERCENTILE('Ruwe data CO2-metingen'!E:E,0.98))","v":""},{"$f":"IF('Ruwe data CO2-metingen'!F21=\"\",\"\",PERCENTILE('Ruwe data CO2-metingen'!F:F,0.98))","v":""},{"$f":"IF('Ruwe data CO2-metingen'!G21=\"\",\"\",PERCENTILE('Ruwe data CO2-metingen'!G:G,0.98))","v":""}]
["CO2-productie per leerling [m3/h]",null,{"$f":"IF(AND('stappenplan inspectie scholen '!B28=Lijsten!A2,'stappenplan inspectie scholen '!C60=Lijsten!F2),Lijsten!P2,IF(AND('stappenplan inspectie scholen '!B28=Lijsten!A2,'stappenplan inspectie scholen '!C60=Lijsten!F3),Lijsten!P3,IF(AND('stappenplan inspectie scholen '!B28=Lijsten!A3,'stappenplan inspectie scholen '!C60=Lijsten!F2),Lijsten!P4,IF(AND('stappenplan inspectie scholen '!B28=Lijsten!A3,'stappenplan inspectie scholen '!C60=Lijsten!F3),Lijsten!P5,\"\"))))","v":""},{"$f":"IF(AND('stappenplan inspectie scholen '!B28=Lijsten!A2,'stappenplan inspectie scholen '!D60=Lijsten!F2),Lijsten!P2,IF(AND('stappenplan inspectie scholen '!B28=Lijsten!A2,'stappenplan inspectie scholen '!D60=Lijsten!F3),Lijsten!P3,IF(AND('stappenplan inspectie scholen '!B28=Lijsten!A3,'stappenplan inspectie scholen '!D60=Lijsten!F2),Lijsten!P4,IF(AND('stappenplan inspectie scholen '!B28=Lijsten!A3,'stappenplan inspectie scholen '!D60=Lijsten!F3),Lijsten!P5,\"\"))))","v":""},{"$f":"IF(AND('stappenplan inspectie scholen '!B28=Lijsten!A2,'stappenplan inspectie scholen '!E60=Lijsten!F2),Lijsten!P2,IF(AND('stappenplan inspectie scholen '!B28=Lijsten!A2,'stappenplan inspectie scholen '!E60=Lijsten!F3),Lijsten!P3,IF(AND('stappenplan inspectie scholen '!B28=Lijsten!A3,'stappenplan inspectie scholen '!E60=Lijsten!F2),Lijsten!P4,IF(AND('stappenplan inspectie scholen '!B28=Lijsten!A3,'stappenplan inspectie scholen '!E60=Lijsten!F3),Lijsten!P5,\"\"))))","v":""},{"$f":"IF(AND('stappenplan inspectie scholen '!B28=Lijsten!A2,'stappenplan inspectie scholen '!F60=Lijsten!F2),Lijsten!P2,IF(AND('stappenplan inspectie scholen '!B28=Lijsten!A2,'stappenplan inspectie scholen '!F60=Lijsten!F3),Lijsten!P3,IF(AND('stappenplan inspectie scholen '!B28=Lijsten!A3,'stappenplan inspectie scholen '!F60=Lijsten!F2),Lijsten!P4,IF(AND('stappenplan inspectie scholen '!B28=Lijsten!A3,'stappenplan inspectie scholen '!F60=Lijsten!F3),Lijsten!P5,\"\"))))","v":""},{"$f":"IF(AND('stappenplan inspectie scholen '!B28=Lijsten!A2,'stappenplan inspectie scholen '!G60=Lijsten!F2),Lijsten!P2,IF(AND('stappenplan inspectie scholen '!B28=Lijsten!A2,'stappenplan inspectie scholen '!G60=Lijsten!F3),Lijsten!P3,IF(AND('stappenplan inspectie scholen '!B28=Lijsten!A3,'stappenplan inspectie scholen '!G60=Lijsten!F2),Lijsten!P4,IF(AND('stappenplan inspectie scholen '!B28=Lijsten!A3,'stappenplan inspectie scholen '!G60=Lijsten!F3),Lijsten!P5,\"\"))))","v":""},{"$f":"IF(AND('stappenplan inspectie scholen '!B28=Lijsten!A2,'stappenplan inspectie scholen '!H60=Lijsten!F2),Lijsten!P2,IF(AND('stappenplan inspectie scholen '!B28=Lijsten!A2,'stappenplan inspectie scholen '!H60=Lijsten!F3),Lijsten!P3,IF(AND('stappenplan inspectie scholen '!B28=Lijsten!A3,'stappenplan inspectie scholen '!H60=Lijsten!F2),Lijsten!P4,IF(AND('stappenplan inspectie scholen '!B28=Lijsten!A3,'stappenplan inspectie scholen '!H60=Lijsten!F3),Lijsten!P5,\"\"))))","v":""}]
["Ventilatiehoeveelheid in klaslokaal  [m3/h]",null,{"$f":"IF(OR(C22=\"\",C23=\"\",'stappenplan inspectie scholen '!C59=\"\"),\"\",(C23*'stappenplan inspectie scholen '!C59*1000000)/('CO2-meting'!C22-400))","v":""},{"$f":"IF(OR(D22=\"\",D23=\"\",'stappenplan inspectie scholen '!D59=\"\"),\"\",(D23*'stappenplan inspectie scholen '!D59*1000000)/('CO2-meting'!D22-400))","v":""},{"$f":"IF(OR(E22=\"\",E23=\"\",'stappenplan inspectie scholen '!E59=\"\"),\"\",(E23*'stappenplan inspectie scholen '!E59*1000000)/('CO2-meting'!E22-400))","v":""},{"$f":"IF(OR(F22=\"\",F23=\"\",'stappenplan inspectie scholen '!F59=\"\"),\"\",(F23*'stappenplan inspectie scholen '!F59*1000000)/('CO2-meting'!F22-400))","v":""},{"$f":"IF(OR(G22=\"\",G23=\"\",'stappenplan inspectie scholen '!G59=\"\"),\"\",(G23*'stappenplan inspectie scholen '!G59*1000000)/('CO2-meting'!G22-400))","v":""},{"$f":"IF(OR(H22=\"\",H23=\"\",'stappenplan inspectie scholen '!H59=\"\"),\"\",(H23*'stappenplan inspectie scholen '!H59*1000000)/('CO2-meting'!H22-400))","v":""}]
["Ventilatiehoeveelheid per persoon bij bezetting tijdens meting [m3/h p.p]",null,{"$f":"IF(C24=\"\",\"\",C24/'stappenplan inspectie scholen '!C59)","v":""},{"$f":"IF(D24=\"\",\"\",D24/'stappenplan inspectie scholen '!D59)","v":""},{"$f":"IF(E24=\"\",\"\",E24/'stappenplan inspectie scholen '!E59)","v":""},{"$f":"IF(F24=\"\",\"\",F24/'stappenplan inspectie scholen '!F59)","v":""},{"$f":"IF(G24=\"\",\"\",G24/'stappenplan inspectie scholen '!G59)","v":""},{"$f":"IF(H24=\"\",\"\",H24/'stappenplan inspectie scholen '!H59)","v":""}]
["Ventilatiehoeveelheid per persoon bij bezetting tijdens ontwerp [m3/h p.p]",null,{"$f":"IF(C24=\"\",\"\",C24/'stappenplan inspectie scholen '!C58)","v":""},{"$f":"IF(D24=\"\",\"\",D24/'stappenplan inspectie scholen '!D58)","v":""},{"$f":"IF(E24=\"\",\"\",E24/'stappenplan inspectie scholen '!E58)","v":""},{"$f":"IF(F24=\"\",\"\",F24/'stappenplan inspectie scholen '!F58)","v":""},{"$f":"IF(G24=\"\",\"\",G24/'stappenplan inspectie scholen '!G58)","v":""},{"$f":"IF(H24=\"\",\"\",H24/'stappenplan inspectie scholen '!H58)","v":""}]
["Klik hier om terug te keren naar het stappenplan"]
[null,"Tijd","CO2-Metingen per Klaslokaal"]

{"sheet":"Ruwe data CO2-metingen","index":5,"n_rows":21,"n_cols":8,"rows_kept":21,"cut":false,"hidden":false,"merged":[[18,1,18,6]]}
[]
[]
[]
[]
[]
[]
[]
[]
[]
[]
[]
[]
[]
[]
[]
[]
["CO2-Meetwaarden"]
[]
["Tijd","CO2-Metingen per Klaslokaal"]
[null,"1","2","3","4","5","6"]
[null,null,null,null,null,null,null,"Klik hier om terug te keren naar de het tabblad CO2-meting nadat alle meetwaarden in de kolommen van de verschillende klaslokalen is geplakt"]

{"sheet":"Debiet-metingen - Rooster","index":6,"n_rows":60,"n_cols":13,"rows_kept":60,"cut":false,"hidden":false,"merged":[[18,2,18,11],[39,2,39,11]]}
[]
[]
[]
[]
[]
[]
[]
[]
[]
[]
[]
[]
[]
[]
[]
[]
["Debietmetingen - Rooster"]
[]
["Opname",null,"Rooster nr.:",null,null,null,null,null,null,null,null,null,"Toelichtingen"]
[null,null,1,2,3,4,5,6,7,8,9,10]
["Noteer het klaslokaal nummer waarvoor de opname wordt uitgevoerd",1]
["Noteer het gemeten debiet over het rooster [m3/h]"]
["Klik hier om terug te keren naar het stappenplan als er geen opnames meer zijn van andere klaslokalen"]
["Noteer het klaslokaal nummer waarvoor de opname wordt uitgevoerd",2]
["Noteer het gemeten debiet over het rooster [m3/h]"]
["Klik hier om terug te keren naar het stappenplan als er geen opnames meer zijn van andere klaslokalen"]
["Noteer het klaslokaal nummer waarvoor de opname wordt uitgevoerd",3]
["Noteer het gemeten debiet over het rooster [m3/h]"]
["Klik hier om terug te keren naar het stappenplan als er geen opnames meer zijn van andere klaslokalen"]
["Noteer het klaslokaal nummer waarvoor de opname wordt uitgevoerd",4]
["Noteer het gemeten debiet over het rooster [m3/h]",null,null,null,null,null,null,null,null,null,null,null," De haalbare kierafstand is noodzakelijk om de hoek te bepalen voor de maximale opening van de buitendeur of raam (bij schuiframen niet nodig)"]
["Klik hier om terug te keren naar het stappenplan als er geen opnames meer zijn van andere klaslokalen"]
["Noteer het klaslokaal nummer waarvoor de opname wordt uitgevoerd",5]
["Noteer het gemeten debiet over het rooster [m3/h]"]
["Klik hier om terug te keren naar het stappenplan als er geen opnames meer zijn van andere klaslokalen"]
["Noteer het klaslokaal nummer waarvoor de opname wordt uitgevoerd",6]
["Noteer het gemeten debiet over het rooster [m3/h]"]
["Klik hier om terug te keren naar het stappenplan"]
[]
["Analyse",null,"Rooster nr.:",null,null,null,null,null,null,null,null,null,"Toelichtingen"]
[null,null,1,2,3,4,5,6,7,8,9,10]
[]
["Het klaslokaal nummer waarvoor de analyse wordt uitgevoerd",{"$f":"B21","v":1}]
["Bereken het totale debiet van alle roosters in het klaslokaal [",{"$f":"IF(SUM(C22:L22)=0,\"\",SUM(C22:L22))","v":""}]
["Klik hier om terug te keren naar het stappenplan als er geen analyes meer uitgevoerd moeten worden voor andere klaslokalen"]
["Het klaslokaal nummer waarvoor de analyse wordt uitgevoerd",{"$f":"B24","v":2}]
["Bereken het totale debiet van alle roosters in het klaslokaal",{"$f":"IF(SUM(C25:L25)=0,\"\",SUM(C25:L25))","v":""}]
["Klik hier om terug te keren naar het stappenplan als er geen analyes meer uitgevoerd moeten worden voor andere klaslokalen"]
["Het klaslokaal nummer waarvoor de analyse wordt uitgevoerd",{"$f":"B27","v":3}]
["Bereken het totale debiet van alle roosters in het klaslokaal",{"$f":"IF(SUM(C28:L28)=0,\"\",SUM(C28:L28))","v":""}]
["Klik hier om terug te keren naar het stappenplan als er geen analyes meer uitgevoerd moeten worden voor andere klaslokalen"]
["Het klaslokaal nummer waarvoor de analyse wordt uitgevoerd",{"$f":"B30","v":4}]
["Bereken het totale debiet van alle roosters in het klaslokaal",{"$f":"IF(SUM(C31:L31)=0,\"\",SUM(C31:L31))","v":""}]
["Klik hier om terug te keren naar het stappenplan als er geen analyes meer uitgevoerd moeten worden voor andere klaslokalen"]
["Het klaslokaal nummer waarvoor de analyse wordt uitgevoerd",{"$f":"B33","v":5}]
["Bereken het totale debiet van alle roosters in het klaslokaal",{"$f":"IF(SUM(C34:L34)=0,\"\",SUM(C34:L34))","v":""}]
["Klik hier om terug te keren naar het stappenplan als er geen analyes meer uitgevoerd moeten worden voor andere klaslokalen"]
["Het klaslokaal nummer waarvoor de analyse wordt uitgevoerd",{"$f":"B36","v":6}]
["Bereken het totale debiet van alle roosters in het klaslokaal",{"$f":"IF(SUM(C37:L37)=0,\"\",SUM(C37:L37))","v":""}]
["Klik hier om terug te keren naar het stappenplan"]

{"sheet":"Disclaimer","index":7,"n_rows":21,"n_cols":1,"rows_kept":21,"cut":false,"hidden":false,"merged":[]}
["Disclaimer"]
["Stichting ISSO en degenen die aan de samenstelling van deze Quickscan hebben medegewerkt, hebben een zo groot mogelijke zorgvuldigheid betracht bij zowel het verzamelen als bij het verwerken en opstellen van de in deze Quickscan vervatte gegevens. Nochtans moet niet worden uitgesloten, dat deze Quickscan onvolledig is of dat zij onjuistheden of onvolkomenheden bevat. Degene die van deze Quickscan en de daarin vermelde gegevens gebruik maakt, aanvaardt dan ook daarvoor zelf het risico."]
[]
["Stichting ISSO en degenen die aan de samenstelling van deze Quickscan hebben medegewerkt sluiten iedere aansprakelijkheid uit voor zowel schade die mocht voortvloeien uit het gebruik van de Quickscan als schade die zou kunnen ontstaan als gevolg van eventuele (druk-)fouten, onvolledigheden en onvolkomenheden van deze Quickscan."]
[]
["Alle rechten voorbehouden. Niets uit deze Quickscan mag worden verveelvoudigd, opgeslagen in een geautomatiseerd gegevensbestand of openbaar gemaakt, in enige vorm of op enige wijze, hetzij elektronisch, mechanisch, door fotokopieën, opnamen of enige andere manier, zonder voorafgaande schriftelijke toestemming van het bestuur van Stichting ISSO."]
[]
["Voorzover het maken van kopieën uit deze Quickscan is toegestaan op grond van artikel 16h t/m 16m Auteurswet 1912 jo het Besluit van 27 november 2002, Stb 575, dient men de daarvoor wettelijk verschuldigde vergoedingen te voldoen aan dae Stichting Reprorecht (Postbus 3060, 2130 KB Hoofddorp)."]
[]
["All rights reserved. No part of this publication may be reproduced, stored in a retrieval system, or transmitted in any form by any means, electronic, mechanical, photocopying, recording or otherwise, without the written permission of the foundation ISSO."]
[]
["Op alle Quickscans van Stichting ISSO zijn de Algemene Leveringsvoorwaarden van toepassing. Deze kunt u lezen op www.isso.nl of opvragen bij Stichting ISSO. "]
[]
["Aanvullingen en eventuele errata zijn te raadplegen via onze website: www.isso.nl"]
[]
["Eventuele opmerkingen en vragen kunnen doorgegeven worden aan ISSO"]
["Postbus 577"]
["3000 AN Rotterdam"]
["isso@isso.nl"]
[]
["©Stichting ISSO – Rotterdam, oktober 2020"]

{"sheet":"Lijsten","index":8,"n_rows":17,"n_cols":18,"rows_kept":17,"cut":false,"hidden":true,"merged":[]}
["Soort onderwijs in gebouwdeel","Ventilatiesysteem","Meetmethoden","Minimaal Aantal Klaslokalen","Gevelorientatie","Leeftijdscategorie","Type A susteem","klaslokaal nr","Geveldeel","Scharnier","Hoogte raam","Stand ventilatie","Type Debietmeting","Toetswaarde Bouwbesluit","Toetswaarde CO2-grenswaarde","CO2 productie [l/s]","Windkracht","Ja/Nee"]
["Basisonderwijs","Systeem A",{"$f":"IF('stappenplan inspectie scholen '!B36=Lijsten!B2,\"Capaciteitsbepaling\",\"Debiet-meting\")","v":"Debiet-meting"},"Bekijk 1 tot 3 typen veel voorkomende klaslokalen en maximaal 2 worst case klaslokalen (bijvoorbeeld minder ramen dan standaard klaslokalen).","N","OB","Ramen",1,"A","ZK","<1,8","CO2 uit","Rooster",6,950,{"$f":"0.0022*3600/1000","v":7.92E-3},1,"Ja"]
["Voortgezet onderwijs","Systeem B","CO2-meting","Minstens 2 klaslokalen per gebouwdeel en minstens 4 klaslokalen per schoolgebouw","NNO","BB","Roosters",2,"B","BK",">1,8",1,"Kanaal",8.5,1200,{"$f":"0.00285*3600/1000","v":1.026E-2},2,"Nee"]
[null,"Systeem C",null,"Minstens 1 klaslokaal per gebouwdeel en minstens 2 klaslokalen per schoolgebouw","NO",null,null,3,"C/D","OK",null,2,null,null,null,{"$f":"0.0038*3600/1000","v":1.3679999999999999E-2},3,"Nvt"]
[null,"Systeem D",null,null,"ONO",null,null,4,null,"ZOK",null,3,null,null,null,{"$f":"0.00405*3600/1000","v":1.4579999999999999E-2},4]
[null,null,null,null,"O",null,null,5,null,null,null,4,null,null,null,1.7000000000000001E-2,5]
[null,null,null,null,"OZO",null,null,6,null,null,null,5,null,null,null,null,6]
[null,null,null,null,"ZO",null,null,null,null,null,null,6,null,null,null,null,7]
[null,null,null,null,"ZZO",null,null,null,null,null,null,7,null,null,null,null,8]
[null,null,null,null,"Z",null,null,null,null,null,null,"As Is",null,null,null,null,9]
[null,null,"Capaciteitsbepaling",null,"ZZW",null,null,null,null,null,null,null,null,null,null,null,10]
[null,null,"Debiet-meting",null,"ZW",null,null,null,null,null,null,null,null,null,null,null,11]
[null,null,"CO2-meting",null,"WZW",null,null,null,null,null,null,null,null,null,null,null,12]
[null,null,null,null,"W",null,null,null,null,null,null,null,null,null,null,null,13]
[null,null,null,null,"WNW"]
[null,null,null,null,"NW"]
[null,null,null,null,"NNW"]